fUSD/lending_fUSD_20240105
["ID","MTS","AMOUNT","RATE_DAILY","PERIOD"]
[310305555,1704471042438,-150.0,0.00024686,2]
[310305556,1704471042448,-153.97,0.00024703,2]
[310305557,1704471042457,-724.54,0.00024707,2]
[310305558,1704471042466,-150.0,0.00024712,2]
[310305559,1704471042476,-150.0,0.00024712,2]
[310305560,1704471042485,-150.0,0.00024713,2]
[310305561,1704471042494,-150.0,0.00024727,2]
[310305562,1704471042504,-150.0,0.00024763,2]
[310305563,1704471042514,-150.0,0.00024778,2]
[310305564,1704471042524,-153.9,0.00024788,2]
[310305565,1704471042535,-177.8897533,0.00024789,2]
[310305566,1704471042544,-150.0,0.00024795,2]
[310305567,1704471042554,-150.0,0.00024795,2]
[310305568,1704471042564,-150.0,0.00024797,2]
[310305569,1704471042573,-150.0,0.00024803,2]
[310305570,1704471042583,-150.0,0.00024813,2]
[310305571,1704471042592,-2000.0,0.00024824,2]
[310305572,1704471042601,-200.0,0.00024824,2]
[310305573,1704471042610,-2000.0,0.00024824,2]
[310305574,1704471042619,-200.0,0.00024824,2]
[310305576,1704471042628,-150.0,0.00024826,2]
[310305577,1704471042638,-150.0,0.00024831,2]
[310305579,1704471042647,-150.0,0.0002484,2]
[310305581,1704471042656,-150.0,0.00024852,2]
[310305582,1704471042665,-420.0,0.0002486,2]
[310305584,1704471042674,-150.0,0.0002486,2]
[310305586,1704471042684,-150.0,0.00024863,2]
[310305588,1704471042694,-150.0,0.00024876,2]
[310305589,1704471042703,-469.42,0.00024885,2]
[310305590,1704471042712,-150.0,0.00024889,2]
[310305591,1704471042722,-758.09,0.00024895,2]
[310305592,1704471042732,-150.0,0.000249,2]
[310305593,1704471042741,-150.0,0.00024931,2]
[310305594,1704471042751,-155.32,0.00024936,2]
[310305595,1704471042760,-150.0,0.00024944,2]
[310305596,1704471042770,-150.0,0.00024946,2]
[310305597,1704471042779,-1015.15413898,0.00025,2]
[310305598,1704471042788,-302.38991447,0.00025,2]
[310305599,1704471042798,-1245.12941738,0.00025,2]
[310305600,1704471042807,-201.35180856,0.00025,2]
[310305601,1704471042817,-20000.0,0.00025,2]
[310305602,1704471042826,-1300.0,0.00025,3]
[310305603,1704471042836,-167.05526445,0.00025,2]
[310305604,1704471042845,-691.49436686,0.00025,2]
[310305605,1704471042855,-5000.0,0.00025,2]
[310305606,1704471042863,-1529.90046,0.00025,2]
[310305607,1704471042873,-1300.48383233,0.00025016,2]
[310305608,1704471042882,-153.9,0.0002502,2]
[310305609,1704471042891,-166.53,0.00025031,2]
[310305610,1704471042901,-204.0,0.00025058,6]
[310305611,1704471042910,-2000.0,0.00025072,2]
[310305612,1704471042919,-200.0,0.00025072,2]
[310305613,1704471042929,-2000.0,0.00025072,2]
[310305614,1704471042938,-200.0,0.00025072,2]
[310305615,1704471042948,-63742.19762883,0.0002509,2]
[310305616,1704471042957,-800.0,0.00025175,2]
[310305617,1704471042967,-210.0,0.00025188,2]
[310305618,1704471042976,-153.97,0.00025223,2]
[310305619,1704471042985,-155.32,0.0002523,2]
[310305620,1704471042995,-163.08,0.00025239,2]
[310305621,1704471043004,-153.9,0.00025252,2]
[310305622,1704471043014,-291.71,0.00025292,2]
[310305623,1704471043024,-2000.0,0.00025323,2]
[310305624,1704471043034,-200.0,0.00025323,2]
[310305625,1704471043043,-2000.0,0.00025323,2]
[310305626,1704471043052,-200.0,0.00025323,2]
[310305627,1704471043062,-153.9,0.00025483,2]
[310305628,1704471043071,-155.32,0.00025524,2]
[310305629,1704471043080,-2000.0,0.00025576,2]
[310305630,1704471043089,-200.0,0.00025576,2]
[310305631,1704471043099,-200.0,0.00025576,2]
[310305632,1704471043108,-388.0,0.00025636,2]
[310305633,1704471043117,-1301.0,0.00025636,2]
[310305634,1704471043127,-2412.0,0.00025636,2]
[310305635,1704471043137,-1847.0,0.00025672,2]
[310305636,1704471043146,-3028.0,0.00025672,2]
[310305637,1704471043155,-943.0,0.00025672,2]
[310305638,1704471043164,-833.0,0.00025672,2]
[310305639,1704471043173,-1234.0,0.00025672,2]
[310305640,1704471043183,-1261.0,0.00025672,2]
[310305641,1704471043193,-993.0,0.00025672,2]
[310305642,1704471043217,-591.0,0.00025672,2]
[310305643,1704471043236,-1138.0,0.00025672,2]
[310305644,1704471043250,-1927.0,0.00025672,2]
[310305645,1704471043267,-428.71,0.00025672,2]
[310305646,1704471043285,-881.0,0.00025672,2]
[310305647,1704471043301,-234.0,0.00025672,2]
[310305648,1704471043317,-506.0,0.00025672,2]
[310305649,1704471043333,-435.561,0.00025672,2]
[310305651,1704471043349,-2896.0,0.00025726,2]
[310305652,1704471043365,-5557.0,0.00025726,2]
[310305653,1704471043380,-812.175,0.00025726,2]
[310305654,1704471043398,-4391.0,0.00025726,2]
[310305655,1704471043413,-19644.0,0.00025726,2]
[310305656,1704471043428,-20392.255,0.00025726,2]
[310305657,1704471043448,-2266.0,0.00025726,2]
[310305658,1704471043466,-1026.0,0.00025726,2]
[310305659,1704471043483,-150.0,0.00025726,2]
[310305660,1704471043494,-150.0,0.00025726,2]
[310305661,1704471043508,-153.97,0.00025743,2]
[310305662,1704471043523,-890.36,0.00025786,2]
[310305663,1704471043539,-2796.63,0.00025786,2]
[310305664,1704471043551,-4337.62,0.00025786,2]
[310305665,1704471043564,-5508.17,0.00025786,2]
[310305666,1704471043577,-469.42,0.00025791,2]
[310305667,1704471043591,-155.32,0.00025819,2]
[310305668,1704471043612,-2000.0,0.00025832,2]
[310305669,1704471043625,-200.0,0.00025832,2]
[310305670,1704471043639,-758.09,0.00025874,2]
[310305671,1704471043652,-500.0,0.00025893,2]
[310305672,1704471043663,-1300.48383233,0.00026075,3]
[310305673,1704471043676,-150.0,0.00026079,2]
[310305674,1704471043689,-155.32,0.00026113,2]
[310305675,1704471043705,-171.65,0.0002619,2]
[310305676,1704471043719,-155.73,0.0002619,2]
[310305677,1704471043733,-166.53,0.00026223,2]
[310305678,1704471043748,-153.97,0.00026262,2]
[310305679,1704471043765,-163.08,0.00026279,2]
[310305680,1704471043778,-5000.0,0.000263,2]
[310305681,1704471043792,-167.0,0.00026302,2]
[310305682,1704471043806,-329.922185,0.00026354,2]
[310305683,1704471043819,-800.0,0.00026354,2]
[310305684,1704471043831,-291.71,0.00026392,2]
[310305685,1704471043846,-155.32,0.00026407,2]
[310305686,1704471043859,-267.35551716,0.00026498,2]
[310305687,1704471043871,-1274.15064558,0.00026498,2]
[310305688,1704471043885,-180.71805982,0.00026498,2]
[310305689,1704471043898,-162.23297179,0.00026605,2]
[310305690,1704471043911,-469.42,0.00026697,2]
[310305691,1704471043924,-155.32,0.00026701,2]
[310305692,1704471043937,-314.53,0.00026834,2]
[310305693,1704471043951,-758.09,0.00026852,2]
[310305694,1704471043965,-155.32,0.00026996,2]
[310305695,1704471043978,-206.40165334,0.00027,2]
[310305696,1704471043992,-1350.0,0.00027,3]
[310305697,1704471044005,-1300.48383233,0.00027134,3]
[310305698,1704471044018,-150.0,0.00027191,2]
[310305699,1704471044032,-155.32,0.0002729,2]
[310305700,1704471044047,-344.32,0.00027313,2]
[310305701,1704471044059,-948.24377381,0.00027397,2]
[310305702,1704471044073,-223.20855706,0.00027397,2]
[310305703,1704471044086,-5940.0,0.00027397,2]
[310305704,1704471044099,-155.0,0.00027397,2]
[310305705,1704471044112,-151.0,0.00027397,7]
[310305706,1704471044125,-151.0,0.00027397,7]
[310305707,1704471044138,-159.620211,0.00027397,7]
[310305708,1704471044152,-159.620211,0.00027397,7]
[310305709,1704471044165,-159.620211,0.00027397,7]
[310305710,1704471044178,-159.620211,0.00027397,7]
[310305711,1704471044191,-151.0,0.00027397,7]
[310305712,1704471044204,-151.0,0.00027397,7]
[310305713,1704471044218,-151.0,0.00027397,7]
[310305714,1704471044231,-151.0,0.00027397,7]
[310305715,1704471044245,-151.0,0.00027397,7]
[310305716,1704471044258,-151.0,0.00027397,7]
[310305717,1704471044271,-151.0,0.00027397,7]
[310305718,1704471044286,-151.0,0.00027397,7]
[310305719,1704471044298,-233.82277,0.00027397,7]
[310305720,1704471044312,-151.0,0.00027397,7]
[310305721,1704471044327,-156.524727,0.00027397,7]
[310305722,1704471044342,-250.0,0.00027397,2]
[310305723,1704471044355,-216.721665,0.00027397,7]
[310305724,1704471044369,-151.0,0.00027397,7]
[310305725,1704471044382,-151.0,0.00027397,7]
[310305726,1704471044396,-151.0,0.00027397,7]
[310305727,1704471044409,-151.0,0.00027397,7]
[310305728,1704471044423,-291.631558,0.00027397,7]
[310305729,1704471044437,-291.631558,0.00027397,7]
[310305730,1704471044450,-291.631558,0.00027397,7]
[310305731,1704471044464,-291.631558,0.00027397,7]
[310305732,1704471044477,-332.43,0.00027397,2]
[310305733,1704471044490,-461.181151,0.00027397,7]
[310305734,1704471044503,-461.181151,0.00027397,7]
[310305735,1704471044516,-461.181151,0.00027397,7]
[310305736,1704471044530,-461.181151,0.00027397,7]
[310305737,1704471044543,-151.0,0.00027397,7]
[310305738,1704471044556,-151.0,0.00027397,7]
[310305739,1704471044569,-151.0,0.00027397,7]
[310305740,1704471044582,-265.914047,0.00027397,7]
[310305741,1704471044595,-265.914047,0.00027397,7]
[310305742,1704471044608,-151.0,0.00027397,7]
[310305743,1704471044621,-151.0,0.00027397,7]
[310305744,1704471044633,-151.0,0.00027397,7]
[310305745,1704471044646,-151.0,0.00027397,7]
[310305746,1704471044659,-250.0,0.000274,2]
[310305747,1704471044672,-724.54,0.00027452,2]
[310305748,1704471044685,-5000.0,0.000275,2]
[310305749,1704471044700,-800.0,0.00027533,5]
[310305750,1704471044715,-332.43,0.00027556,2]
[310305751,1704471044728,-155.32,0.00027584,2]
[310305752,1704471044742,-469.42,0.00027603,2]
[310305753,1704471044754,-293.0,0.00027707,2]
[310305754,1704471044767,-332.43,0.00027714,2]
[310305755,1704471044781,-2637.95938184,0.00027795,6]
[310305756,1704471044796,-151.0,0.00027795,7]
[310305757,1704471044809,-151.0,0.00027795,7]
[310305758,1704471044822,-265.914047,0.00027795,7]
[310305759,1704471044835,-265.914047,0.00027795,7]
[310305760,1704471044849,-758.09,0.00027831,2]
[310305761,1704471044863,-150.0,0.00027837,2]
[310305762,1704471044877,-332.43,0.00027872,2]
[310305763,1704471044890,-357.41433157,0.00027874,2]
[310305764,1704471044904,-155.32,0.00027879,2]
[310305765,1704471044916,-2060.792418,0.000279,2]
[310305766,1704471044930,-1500.0,0.00027937,2]
[310305767,1704471044944,-1439.62,0.00027945,2]
[310305768,1704471044957,-2697.43,0.00027945,2]
[310305769,1704471044970,-151.0,0.00027945,7]
[310305770,1704471044982,-291.631558,0.00027945,7]
[310305771,1704471044996,-291.631558,0.00027945,7]
[310305772,1704471045009,-461.181151,0.00027945,7]
[310305773,1704471045023,-461.181151,0.00027945,7]
[310305774,1704471045036,-151.0,0.00027945,7]
[310305775,1704471045049,-11281.02,0.00027945,2]
[310305776,1704471045062,-204.0,0.00027969,10]
[310305777,1704471045075,-12262.29609774,0.00028,2]
[310305778,1704471045088,-686.69000892,0.00028,2]
[310305779,1704471045101,-20000.0,0.00028,2]
[310305780,1704471045114,-202.42953017,0.00028,2]
[310305781,1704471045127,-176.810062,0.00028,7]
[310305782,1704471045142,-332.43,0.0002803,2]
[310305783,1704471045155,-332.43,0.00028189,2]
[310305784,1704471045169,-1300.48383233,0.00028193,4]
[310305785,1704471045182,-1500.0,0.00028304,2]
[310305786,1704471045195,-167.0,0.00028307,2]
[310305787,1704471045209,-173.36,0.00028307,2]
[310305788,1704471045222,-167.01,0.00028307,2]
[310305789,1704471045234,-332.43,0.00028347,2]
[310305790,1704471045243,-5000.0,0.00028439,2]
[310305791,1704471045253,-1500.0,0.0002847,2]
[310305792,1704471045263,-321.9744828,0.000285,2]
[310305793,1704471045273,-5000.0,0.000285,2]
[310305794,1704471045283,-500.0,0.00028502,2]
[310305795,1704471045293,-332.43,0.00028505,2]
[310305796,1704471045302,-469.42,0.00028509,2]
[310305797,1704471045312,-150.0,0.00028551,2]
[310305798,1704471045322,-388.0,0.00028636,2]
[310305799,1704471045331,-846.311,0.00028636,2]
[310305800,1704471045341,-150.0,0.00028643,2]
[310305801,1704471045350,-332.43,0.00028664,2]
[310305802,1704471045360,-1847.0,0.00028672,2]
[310305805,1704471045794,-429.532,0.00028672,2]
[310305806,1704471045824,-943.0,0.00028672,2]
[310305807,1704471045847,-333.868,0.00028672,2]
[310305809,1704471045857,-1254.0,0.00028672,2]
[310305811,1704471045867,-993.0,0.00028672,2]
[310305813,1704471045878,-509.449,0.00028672,2]
[310305815,1704471045887,-1138.0,0.00028672,2]
[310305817,1704471045896,-1927.0,0.00028672,2]
[310305819,1704471045906,-424.0,0.00028672,2]
[310305821,1704471045915,-881.0,0.00028672,2]
[310305823,1704471045925,-234.0,0.00028672,2]
[310305825,1704471045935,-506.0,0.00028672,2]
[310305828,1704471045944,-318.0,0.00028672,2]
[310305829,1704471045954,-710.55,0.00028701,2]
[310305831,1704471045963,-800.0,0.00028712,5]
[310305834,1704471045976,-173766.59442746,0.00028725,2]
[310305836,1704471045985,-151.0,0.00028725,7]
[310305838,1704471045995,-151.0,0.00028725,7]
[310305840,1704471046004,-151.0,0.00028725,7]
[310305842,1704471046013,-151.0,0.00028725,7]
[310305843,1704471046023,-2896.0,0.00028726,2]
[310305844,1704471046033,-5557.0,0.00028726,2]
[310305845,1704471046042,-4391.0,0.00028726,2]
[310305846,1704471046051,-19644.0,0.00028726,2]
[310305848,1704471046061,-2266.0,0.00028726,2]
[310305849,1704471046070,-1026.0,0.00028726,2]
[310305851,1704471046080,-155.0,0.00028767,2]
[310305853,1704471046091,-1500.0,0.00028772,2]
[310305855,1704471046100,-1500.0,0.00028777,2]
[310305857,1704471046110,-758.09,0.00028809,2]
[310305859,1704471046119,-332.43,0.00028822,2]
[310305861,1704471046129,-1500.0,0.00028846,2]
[310305863,1704471046138,-1500.0,0.00028869,2]
[310305865,1704471046148,-5000.0,0.00028893,2]
[310305867,1704471046157,-2000.0,0.000289,2]
[310305869,1704471046167,-150.0,0.00028976,2]
[310305871,1704471046176,-1500.0,0.00028981,2]
[310305873,1704471046185,-266.705448,0.00028999,7]
[310305875,1704471046196,-291.631558,0.00028999,7]
[310305877,1704471046205,-291.631558,0.00028999,7]
[310305879,1704471046214,-461.181151,0.00028999,7]
[310305881,1704471046224,-461.181151,0.00028999,7]
[310305883,1704471046234,-151.0,0.00028999,7]
[310305885,1704471046243,-151.0,0.00028999,7]
[310305887,1704471046252,-265.914047,0.00028999,7]
[310305889,1704471046262,-265.914047,0.00028999,7]
[310305891,1704471046271,-189318.36994353,0.00028999,2]
[310305893,1704471046280,-129007.34190617,0.00029,2]
[310305895,1704471046290,-151.0,0.00029,7]
[310305897,1704471046299,-159.620211,0.00029,7]
[310305899,1704471046308,-159.620211,0.00029,7]
[310305901,1704471046317,-151.0,0.00029,7]
[310305903,1704471046328,-3000.0,0.00029,2]
[310305904,1704471046337,-151.0,0.00029,7]
[310305906,1704471046347,-151.0,0.00029,7]
[310305908,1704471046356,-151.0,0.00029,7]
[310305910,1704471046366,-151.0,0.0002901,7]
[310305912,1704471046376,-150.0,0.00029061,2]
[310305915,1704471046386,-150.0,0.00029072,2]
[310305916,1704471046396,-150.0,0.00029085,2]
[310305918,1704471046406,-150.0,0.00029097,2]
[310305920,1704471046415,-314.53,0.00029098,2]
[310305922,1704471046425,-150.0,0.00029099,2]
[310305924,1704471046436,-150.0,0.00029129,2]
[310305926,1704471046446,-150.0,0.00029133,2]
[310305928,1704471046455,-150.0,0.00029147,2]
[310305930,1704471046464,-150.0,0.00029149,2]
[310305932,1704471046473,-150.0,0.00029155,2]
[310305934,1704471046482,-150.0,0.00029157,2]
[310305935,1704471046492,-150.0,0.00029162,2]
[310305936,1704471046501,-150.0,0.00029164,2]
[310305937,1704471046510,-150.0,0.00029175,2]
[310305938,1704471046521,-150.0,0.0002918,2]
[310305939,1704471046531,-150.0,0.00029185,2]
[310305940,1704471046540,-150.0,0.00029207,2]
[310305941,1704471046551,-150.0,0.0002921,2]
[310305942,1704471046561,-1500.0,0.00029212,2]
[310305943,1704471046572,-150.0,0.00029228,2]
[310305944,1704471046581,-1300.48383233,0.00029251,4]
[310305945,1704471046592,-150.0,0.00029252,2]
[310305946,1704471046602,-1500.0,0.00029252,2]
[310305947,1704471046612,-150.0,0.00029256,2]
[310305948,1704471046621,-150.0,0.00029256,2]
[310305949,1704471046631,-150.0,0.00029283,2]
[310305950,1704471046642,-150.0,0.00029286,2]
[310305951,1704471046652,-150.0,0.00029287,2]
[310305952,1704471046662,-150.0,0.00029299,2]
[310305953,1704471046672,-1500.0,0.00029299,2]
[310305954,1704471046682,-150.0,0.00029301,2]
[310305955,1704471046693,-150.0,0.00029313,2]
[310305956,1704471046703,-170.75,0.00029315,2]
[310305957,1704471046713,-170.75,0.00029315,10]
[310305958,1704471046724,-170.75,0.00029315,19]
[310305959,1704471046734,-170.75,0.00029315,28]
[310305960,1704471046745,-150.0,0.00029316,2]
[310305961,1704471046755,-150.0,0.00029317,2]
[310305962,1704471046766,-1500.0,0.00029322,2]
[310305963,1704471046776,-150.0,0.00029331,2]
[310305964,1704471046786,-150.0,0.00029333,2]
[310305965,1704471046796,-150.0,0.00029337,2]
[310305966,1704471046806,-150.0,0.00029341,2]
[310305967,1704471046816,-150.0,0.00029349,2]
[310305968,1704471046825,-150.0,0.00029362,2]
[310305969,1704471046836,-150.0,0.00029374,2]
[310305970,1704471046847,-3024.0,0.000294,2]
[310305971,1704471046859,-37846.0,0.000294,2]
[310305972,1704471046870,-150.0,0.00029407,2]
[310305973,1704471046881,-469.42,0.00029415,2]
[310305974,1704471046891,-150.0,0.00029419,2]
[310305975,1704471046903,-150.0,0.00029433,2]
[310305976,1704471046913,-150.0,0.00029444,2]
[310305977,1704471046923,-150.0,0.00029457,2]
[310305978,1704471046933,-150.0,0.00029466,2]
[310305979,1704471046943,-1500.0,0.00029479,2]
[310305980,1704471046953,-150.0,0.00029481,2]
[310305981,1704471046963,-150.0,0.00029484,2]
[310305982,1704471046972,-5000.0,0.00029489,2]
[310305983,1704471046982,-150.0,0.00029497,2]
[310305984,1704471046992,-150.0,0.00029507,2]
[310305985,1704471047000,-150.0,0.00029533,2]
[310305986,1704471047010,-150.0,0.00029534,2]
[310305987,1704471047019,-150.0,0.00029539,2]
[310305988,1704471047029,-150.0,0.00029543,2]
[310305989,1704471047038,-150.0,0.00029543,2]
[310305990,1704471047049,-150.0,0.00029564,2]
[310305991,1704471047058,-150.0,0.00029615,2]
[310305992,1704471047068,-150.0,0.0002964,2]
[310305993,1704471047079,-150.0,0.0002964,2]
[310305994,1704471047089,-150.0,0.00029642,2]
[310305995,1704471047099,-150.0,0.00029646,2]
[310305996,1704471047111,-150.0,0.0002965,2]
[310305997,1704471047121,-150.0,0.00029651,2]
[310305998,1704471047131,-776.91340641,0.0002967,2]
[310305999,1704471047142,-1500.0,0.00029676,2]
[310306000,1704471047152,-150.0,0.00029679,2]
[310306001,1704471047164,-150.0,0.0002968,2]
[310306002,1704471047175,-150.0,0.00029712,2]
[310306003,1704471047185,-150.0,0.00029722,2]
[310306004,1704471047197,-150.0,0.00029732,2]
[310306005,1704471047208,-500.0,0.00029772,2]
[310306006,1704471047218,-500.0,0.00029772,2]
[310306007,1704471047227,-500.0,0.00029772,2]
[310306008,1704471047238,-500.0,0.00029772,2]
[310306009,1704471047248,-500.0,0.00029772,2]
[310306010,1704471047258,-500.0,0.00029772,2]
[310306011,1704471047268,-500.0,0.00029772,2]
[310306012,1704471047280,-500.0,0.00029772,2]
[310306013,1704471047290,-500.0,0.00029772,2]
[310306014,1704471047299,-500.0,0.00029772,2]
[310306015,1704471047309,-500.0,0.00029772,2]
[310306016,1704471047319,-500.0,0.00029772,2]
[310306017,1704471047328,-500.0,0.00029772,2]
[310306018,1704471047338,-500.0,0.00029772,2]
[310306019,1704471047349,-500.0,0.00029772,2]
[310306020,1704471047358,-500.0,0.00029772,2]
[310306021,1704471047367,-500.0,0.00029772,2]
[310306022,1704471047377,-500.0,0.00029772,2]
[310306023,1704471047387,-500.0,0.00029772,2]
[310306024,1704471047398,-500.0,0.00029772,2]
[310306025,1704471047408,-500.0,0.00029772,2]
[310306026,1704471047418,-500.0,0.00029772,2]
[310306027,1704471047428,-500.0,0.00029772,2]
[310306028,1704471047437,-500.0,0.00029772,2]
[310306029,1704471047450,-500.0,0.00029772,2]
[310306030,1704471047459,-500.0,0.00029772,2]
[310306031,1704471047469,-500.0,0.00029772,2]
[310306032,1704471047479,-500.0,0.00029772,2]
[310306033,1704471047489,-500.0,0.00029772,2]
[310306034,1704471047500,-500.0,0.00029772,2]
[310306035,1704471047511,-500.0,0.00029772,2]
[310306036,1704471047520,-500.0,0.00029772,2]
[310306037,1704471047530,-500.0,0.00029772,2]
[310306038,1704471047540,-500.0,0.00029772,2]
[310306039,1704471047550,-500.0,0.00029772,2]
[310306040,1704471047559,-500.0,0.00029772,2]
[310306041,1704471047568,-500.0,0.00029772,2]
[310306042,1704471047578,-500.0,0.00029772,2]
[310306043,1704471047588,-500.0,0.00029772,2]
[310306044,1704471047598,-500.0,0.00029772,2]
[310306045,1704471047608,-500.0,0.00029772,2]
[310306046,1704471047618,-500.0,0.00029772,2]
[310306047,1704471047628,-500.0,0.00029772,2]
[310306048,1704471047638,-500.0,0.00029772,2]
[310306049,1704471047648,-500.0,0.00029772,2]
[310306050,1704471047657,-500.0,0.00029772,2]
[310306051,1704471047667,-500.0,0.00029772,2]
[310306052,1704471047676,-500.0,0.00029772,2]
[310306053,1704471047686,-500.0,0.00029772,2]
[310306054,1704471047698,-500.0,0.00029772,2]
[310306055,1704471047708,-500.0,0.00029772,2]
[310306056,1704471047718,-500.0,0.00029772,2]
[310306057,1704471047728,-500.0,0.00029772,2]
[310306058,1704471047739,-500.0,0.00029772,2]
[310306059,1704471047749,-500.0,0.00029772,2]
[310306060,1704471047759,-500.0,0.00029772,2]
[310306061,1704471047770,-500.0,0.00029772,2]
[310306062,1704471047780,-500.0,0.00029772,2]
[310306063,1704471047791,-500.0,0.00029772,2]
[310306064,1704471047800,-500.0,0.00029772,2]
[310306065,1704471047810,-500.0,0.00029772,2]
[310306066,1704471047819,-500.0,0.00029772,2]
[310306067,1704471047830,-500.0,0.00029772,2]
[310306068,1704471047840,-500.0,0.00029772,2]
[310306069,1704471047850,-500.0,0.00029772,2]
[310306070,1704471047861,-500.0,0.00029772,2]
[310306071,1704471047871,-500.0,0.00029772,2]
[310306072,1704471047880,-300.0,0.00029773,2]
[310306073,1704471047890,-500.0,0.00029773,2]
[310306074,1704471047901,-500.0,0.00029773,2]
[310306075,1704471047912,-500.0,0.00029773,2]
[310306076,1704471047921,-500.0,0.00029773,2]
[310306077,1704471047930,-1060.5185508,0.00029773,2]
[310306078,1704471047941,-150.0,0.00029774,2]
[310306079,1704471047953,-150.0,0.00029782,2]
[310306080,1704471047963,-758.09,0.00029788,2]
[310306081,1704471047973,-150.0,0.00029807,2]
[310306082,1704471047983,-150.0,0.00029813,2]
[310306083,1704471047993,-150.0,0.0002982,2]
[310306084,1704471048003,-220.91487057,0.0002983,4]
[310306085,1704471048012,-150.0,0.00029852,2]
[310306086,1704471048023,-150.0,0.00029869,2]
[310306087,1704471048033,-150.0,0.00029877,2]
[310306088,1704471048042,-150.0,0.00029885,2]
[310306089,1704471048051,-800.0,0.00029891,5]
[310306090,1704471048062,-500.0,0.00029892,2]
[310306091,1704471048072,-150.0,0.00029893,2]
[310306092,1704471048082,-150.0,0.00029894,2]
[310306093,1704471048091,-150.0,0.00029894,2]
[310306094,1704471048102,-814.98537511,0.000299,2]
[310306095,1704471048111,-2000.0,0.000299,2]
[310306096,1704471048121,-150.0,0.00029922,2]
[310306097,1704471048132,-1500.0,0.00029926,2]
[310306098,1704471048141,-150.0,0.00029934,2]
[310306099,1704471048151,-150.0,0.00029936,2]
[310306100,1704471048160,-1500.0,0.00029937,2]
[310306101,1704471048171,-1500.0,0.00029939,2]
[310306102,1704471048180,-150.0,0.00029941,2]
[310306103,1704471048190,-1500.0,0.0002995,2]
[310306104,1704471048202,-300.0,0.00029961,2]
[310306105,1704471048211,-500.0,0.00029961,2]
[310306106,1704471048221,-500.0,0.00029961,2]
[310306107,1704471048230,-500.0,0.00029961,2]
[310306108,1704471048240,-500.0,0.00029961,2]
[310306109,1704471048249,-500.0,0.00029961,2]
[310306110,1704471048259,-500.0,0.00029961,2]
[310306111,1704471048269,-500.0,0.00029961,2]
[310306112,1704471048280,-500.0,0.00029961,2]
[310306113,1704471048292,-500.0,0.00029961,2]
[310306114,1704471048303,-500.0,0.00029961,2]
[310306115,1704471048313,-500.0,0.00029961,2]
[310306116,1704471048323,-500.0,0.00029961,2]
[310306117,1704471048334,-500.0,0.00029961,2]
[310306118,1704471048346,-500.0,0.00029961,2]
[310306119,1704471048356,-500.0,0.00029961,2]
[310306120,1704471048366,-500.0,0.00029961,2]
[310306121,1704471048377,-500.0,0.00029961,2]
[310306122,1704471048387,-500.0,0.00029961,2]
[310306123,1704471048398,-500.0,0.00029961,2]
[310306124,1704471048408,-500.0,0.00029961,2]